bitfinex/quotes_ETHUSD_20260202
["timestamp","ask_amount","ask_price","bid_price","bid_amount"]
[1770044737730,0.0011,2338.2,2336.9,0.00080384]
[1770044737933,0.0011,2338.2,2337.0,1.0697163]
[1770044738120,0.0011,2338.2,2337.1,0.898]
[1770044738449,0.0011,2338.2,2337.1,1.52275576]
[1770044739348,0.0011,2338.2,2337.0,1.9677163]
[1770044739721,0.0011,2338.2,2337.0,0.898]
[1770044739921,0.0011,2338.2,2336.9,0.00080384]
[1770044740141,0.0011,2338.2,2336.9,1.07059095]
[1770044740343,0.0011,2338.2,2337.0,1.06973934]
[1770044740546,0.0011,2338.2,2336.9,0.00080384]
[1770044740729,7.45211172,2337.9,2336.4,0.15838406]
[1770044741054,0.3359703,2337.0,2335.4,0.0008024]
[1770044741246,6.050591,2336.7,2335.4,0.0008024]
[1770044741428,5.468591,2336.7,2335.4,0.0008024]
[1770044741629,7.1046933,2336.7,2335.4,0.0008024]
[1770044741836,0.8632152,2336.6,2335.4,1.07127601]
[1770044742033,0.00080312,2336.9,2335.4,0.0008024]
[1770044742854,1.63066184,2336.9,2335.4,0.0008024]
[1770044743054,0.10320312,2336.9,2335.4,0.0008024]
[1770044743242,7.560068,2336.8,2335.4,0.0008024]
[1770044743441,1.63066184,2336.9,2335.4,0.0008024]
[1770044743747,0.38779635,2336.8,2335.4,0.0008024]
[1770044743948,0.00080312,2336.9,2335.4,1.07128283]
[1770044745451,0.00080312,2336.9,2335.5,0.898]
[1770044746038,0.00080312,2336.9,2335.5,1.96841954]
[1770044747273,0.00080312,2336.9,2335.4,4.2826964]
[1770044747274,12.7258641,2336.9,2335.4,0.0008024]
[1770044747432,12.7258641,2336.9,2334.4,0.001]
[1770044747433,1.52745872,2335.9,2334.4,0.001]
[1770044747633,1.52745872,2335.4,2334.4,0.001]
[1770044747848,1.52745872,2335.4,2334.2,0.00080048]
[1770044747849,6.261084,2335.1,2334.2,0.00080048]
[1770044748062,3.901194,2335.1,2334.2,0.00080048]
[1770044748267,8.786499,2334.9,2333.7,0.001]
[1770044748471,8.786499,2334.9,2333.3,0.001]
[1770044748472,0.00080048,2334.3,2333.3,0.001]
[1770044748776,0.91710943,2334.2,2333.3,0.001]
[1770044748980,0.91710943,2334.2,2332.3,0.899]
[1770044748981,0.002,2333.2,2329.9,0.001]
[1770044749177,0.002,2333.2,2329.9,6.81469334]
[1770044749178,0.53857,2330.2,2329.9,6.81469334]
[1770044749377,16.626052,2331.7,2328.6,9.31017522]
[1770044749378,12.95370902,2330.8,2328.6,4.29430344]
[1770044749687,0.00080024,2331.1,2328.2,11.742726]
[1770044749688,0.91407258,2330.7,2329.2,4.2932188]
[1770044749870,1.75691767,2331.1,2329.9,1.07300475]
[1770044749871,0.00080024,2331.1,2329.9,1.07300475]
[1770044750039,0.00080024,2331.1,2329.2,13.13449618]
[1770044750240,0.00080024,2331.1,2329.3,1.40324962]
[1770044750669,6.18318981,2331.0,2329.3,1.40324962]
[1770044750870,2.135876,2331.0,2329.1,1.07337221]
[1770044751055,0.10320024,2331.1,2329.1,1.07337221]
[1770044751056,1.00120024,2331.1,2329.1,1.07337221]
[1770044751374,3.029684,2331.0,2329.1,1.07337221]
[1770044751683,1.00120024,2331.1,2329.4,12.06116629]
[1770044751684,0.00080024,2331.1,2329.4,12.06116629]
[1770044751971,0.00080024,2331.1,2329.5,1.20611663]
[1770044752144,0.00080024,2331.1,2329.6,1.0731456]
[1770044752344,0.00080024,2331.1,2329.7,0.898]
[1770044753443,26.928207,2330.9,2329.3,1.07327643]
[1770044753762,0.1024,2331.0,2328.9,0.001]
[1770044753763,4.662984,2331.0,2329.4,1.07321078]
[1770044753964,6.67973757,2330.9,2329.5,1.07317869]
[1770044754274,4.88733306,2330.9,2329.1,12.06116629]
[1770044755446,4.88733306,2330.9,2329.0,4.29441578]
[1770044755650,4.88733306,2330.9,2329.1,0.899]
[1770044756072,4.88733306,2330.9,2329.1,12.96016629]
[1770044756248,4.76089316,2330.9,2329.5,12.06116629]
[1770044756449,12.36226088,2332.3,2330.3,0.00080048]
[1770044756785,21.69838863,2332.3,2330.4,0.899]
[1770044757094,21.69838863,2332.3,2330.3,0.00080048]
[1770044757251,0.22,2330.4,2330.3,0.00080048]
[1770044757589,12.36306112,2331.8,2330.3,0.00080048]
[1770044757787,1.33870611,2331.7,2330.3,0.00080048]
[1770044758159,2.41675,2331.6,2330.3,0.00080048]
[1770044758563,12.36226088,2331.1,2329.0,0.00080482]
[1770044758766,3.397677,2330.3,2329.0,1.07419789]
[1770044758977,0.3500077,2330.2,2329.0,0.00080482]
[1770044759181,5.886904,2330.3,2329.0,0.00080482]
[1770044759390,12.36226088,2330.2,2329.0,0.00080482]
[1770044759682,5.572275,2330.0,2329.0,0.00080482]
[1770044759887,5.572275,2330.0,2328.9,0.001]
[1770044760560,12.3630657,2330.2,2328.9,0.001]
[1770044760561,0.00080482,2330.2,2328.9,0.001]
[1770044760892,20.682316,2330.1,2328.9,0.001]
[1770044761115,2.2615,2329.9,2328.9,0.001]
[1770044761302,2.30541511,2330.0,2328.9,0.001]
[1770044761615,0.1024,2330.1,2329.2,0.001]
[1770044762182,0.00080482,2330.2,2329.2,0.001]
[1770044763023,4.809431,2330.1,2329.2,0.001]
[1770044763220,0.00080482,2330.2,2329.2,0.001]
[1770044764028,0.00080048,2331.1,2329.3,0.899]
[1770044764606,0.00080048,2331.1,2329.2,0.001]
[1770044764796,0.00080048,2331.1,2329.3,0.9]
[1770044764994,0.00080048,2331.1,2329.3,1.97325]
[1770044765215,0.00080048,2331.1,2329.4,0.62674858]
[1770044765533,0.00080048,2331.1,2329.5,12.06116629]
[1770044765823,0.00080048,2331.1,2329.5,12.96116629]
[1770044766335,0.00080048,2331.1,2329.2,4.29413527]
[1770044766336,0.00080048,2331.1,2329.6,0.9]
[1770044767330,0.00080048,2331.1,2329.6,12.96116629]
[1770044767620,0.00080048,2331.1,2329.7,0.9]
[1770044767812,0.00080048,2331.1,2329.8,1.29611663]
[1770044768490,0.00080048,2331.1,2329.9,0.9]
[1770044770921,0.00080048,2331.1,2329.9,1.97300541]
[1770044771090,0.00080048,2331.1,2329.9,1.97300474]
[1770044771498,0.0011,2331.5,2329.9,14.03417103]
[1770044771701,0.0011,2331.5,2330.3,0.00080072]
[1770044772189,0.00080024,2331.8,2330.4,12.07828738]
[1770044772414,0.0011,2332.7,2331.0,0.00080048]
[1770044772725,0.00080048,2332.9,2331.7,0.01712109]
[1770044772909,0.00080048,2333.2,2332.1,0.00080072]
[1770044773284,0.00080048,2333.2,2332.2,0.9]
[1770044773486,0.00080048,2333.2,2332.1,0.00080072]
[1770044774394,0.00080048,2333.2,2332.2,0.9]
[1770044774902,0.0011,2332.3,2332.1,0.00080072]
[1770044775305,0.0011,2332.5,2332.1,0.00080072]
[1770044775507,0.00080048,2333.2,2332.1,0.00080072]
[1770044776125,0.90969921,2333.1,2332.1,0.00080072]
[1770044776320,0.00080048,2333.2,2332.1,0.00080072]
[1770044776690,0.90970903,2333.1,2332.1,0.00080072]
[1770044776896,0.00080048,2333.2,2332.1,0.00080072]
[1770044777419,1.12762068,2333.2,2332.1,0.00080072]
[1770044777625,1.12762068,2333.2,2331.3,4.28943431]
[1770044777626,0.00080072,2332.5,2330.1,12.06116629]
[1770044777845,1.1268202,2332.3,2330.7,4.29052777]
[1770044778128,1.1268202,2331.9,2330.4,4.29099125]
[1770044778300,1.1268202,2331.6,2330.5,0.899]
[1770044778492,0.91366362,2331.5,2330.6,1.0726838]
[1770044778694,0.91366362,2331.4,2330.5,1.97169914]
[1770044779011,1.1268202,2331.7,2330.5,1.97169914]
[1770044779196,0.9164409,2331.6,2330.5,0.899]
[1770044779530,0.9164409,2331.5,2330.5,1.97172376]
[1770044779704,0.9164409,2331.4,2330.3,0.89980072]
[1770044779909,1.1268202,2331.7,2330.5,1.07272637]
[1770044780230,0.91642187,2331.6,2330.5,1.07272637]
[1770044780442,1.1268202,2332.0,2330.4,4.29110796]
[1770044780647,2.04310476,2331.9,2330.4,4.29110796]
[1770044780928,0.91628456,2331.8,2330.4,4.29110796]
[1770044781133,0.91628456,2331.7,2330.8,0.899]
[1770044781426,0.91628456,2331.6,2330.4,1.0727772]
[1770044781729,1.1268202,2331.4,2330.3,0.00080072]
[1770044781919,0.91628456,2331.3,2330.3,1.07361136]
[1770044782529,0.91628456,2331.2,2330.3,0.00080072]
[1770044782728,0.91628456,2331.1,2330.3,0.00080072]
[1770044782933,1.1268202,2331.4,2330.3,0.00080072]
[1770044783109,0.91645497,2331.3,2330.3,0.00080072]
[1770044783436,0.91645497,2331.2,2330.3,0.62719702]
[1770044783635,0.91645497,2331.1,2330.3,0.62719702]
[1770044783803,1.1268202,2331.4,2330.3,0.62719702]
[1770044784003,0.91649817,2331.3,2330.3,0.62719702]
[1770044784200,0.91649817,2331.2,2330.4,0.899]
[1770044784440,1.1268202,2331.4,2330.4,0.899]
[1770044784441,1.1268202,2331.5,2330.4,0.899]
[1770044784604,1.49277683,2331.6,2330.5,0.899]
[1770044784605,1.1268202,2331.6,2330.5,0.899]
[1770044784812,1.1268202,2331.6,2330.5,0.62637316]
[1770044785119,1.1268202,2331.5,2330.5,0.899]
[1770044785435,1.1268202,2331.6,2330.5,0.899]
[1770044786244,1.1268202,2331.5,2330.5,0.899]
[1770044786447,1.1268202,2331.6,2330.5,0.899]
[1770044786941,1.1268202,2331.6,2330.6,1.07268514]
[1770044787145,1.1268202,2331.6,2330.7,0.62625565]
[1770044787314,1.11824093,2331.6,2330.7,0.62625565]
[1770044787808,0.0011,2331.2,2330.7,0.62625565]
[1770044788511,0.0011,2331.4,2330.7,0.62625565]
[1770044788947,0.00080048,2331.8,2330.8,1.0725931]
[1770044789148,0.00080048,2331.8,2330.9,0.59892211]
[1770044790814,1.49357731,2331.8,2330.7,2.59888434]
[1770044791054,1.49357731,2331.8,2330.7,0.62625565]
[1770044791217,1.49277683,2331.7,2330.7,1.07263841]
[1770044791618,0.00080048,2331.8,2330.7,1.07263841]
[1770044791955,0.00080048,2331.8,2330.6,1.07266587]
[1770044791956,1.49357731,2331.8,2330.6,1.07266587]
[1770044792140,1.49277683,2331.6,2330.7,1.97263554]
[1770044792828,1.49277683,2331.7,2330.7,1.97263554]
[1770044793152,1.49277683,2331.5,2330.7,1.97263554]
[1770044793451,1.49277683,2331.6,2330.7,2.59907238]
[1770044793660,1.49277683,2331.7,2330.7,2.59907238]
[1770044793946,0.00080048,2331.8,2330.7,2.59907238]
[1770044794618,1.49277683,2332.1,2330.7,14.45021299]
[1770044794856,1.49277683,2332.2,2331.0,0.00080072]
[1770044795042,1.49277683,2332.1,2331.1,1.97241179]
[1770044795552,1.49277683,2332.1,2331.1,1.07241179]
[1770044795720,1.49277683,2332.1,2331.2,0.9]
[1770044796252,1.49277683,2332.1,2331.1,1.07244868]
[1770044796419,1.49277683,2331.9,2331.1,1.97244959]
[1770044796622,0.9212587,2331.8,2331.0,0.00080072]
[1770044796820,2.41403553,2331.7,2331.0,0.00080072]
[1770044797031,0.9212587,2331.6,2331.0,0.00080072]
[1770044797345,0.9212587,2331.5,2331.0,0.00080072]
[1770044797521,0.9212587,2331.4,2331.0,0.00080072]
[1770044797722,0.9212587,2331.3,2331.0,0.00080072]
[1770044797941,1.49277683,2331.7,2331.0,0.00080072]
[1770044798119,0.92161528,2331.6,2331.0,0.00080072]
[1770044798449,0.92161528,2331.6,2329.6,4.29251353]
[1770044798450,12.71256889,2331.3,2329.6,4.29251353]
[1770044798648,12.71256889,2331.3,2329.8,4.29211261]
[1770044798649,1.5369486,2330.8,2329.8,4.29211261]
[1770044798857,2.45856388,2330.7,2329.8,1.97204686]
[1770044799061,1.53675653,2331.4,2330.0,12.92410198]
[1770044799360,0.00080072,2331.8,2330.3,0.00080096]
[1770044799557,0.00080072,2331.8,2330.6,11.85114061]
[1770044799772,0.0011,2332.4,2331.0,0.00080096]
[1770044800059,0.0011,2332.4,2331.1,0.9]
[1770044800651,0.00080072,2332.9,2331.3,11.85114061]
[1770044800977,0.00080072,2332.9,2331.7,0.00080096]
[1770044801458,0.0011,2332.2,2331.7,0.00080096]
[1770044801661,0.0011,2332.2,2331.0,0.00080096]
[1770044801850,0.0011,2332.2,2331.0,0.89980096]
[1770044802025,0.0011,2332.2,2331.0,1.97229902]
[1770044802223,0.0011,2332.2,2331.4,1.07230741]
[1770044802546,0.0011,2332.2,2331.4,0.53616368]
[1770044802745,0.0011,2332.2,2331.0,0.00080096]
[1770044803056,12.71256889,2332.1,2331.0,0.00080096]
[1770044803252,15.69812256,2332.1,2331.0,0.00080096]
[1770044803933,0.0011,2332.2,2331.0,0.00080096]
[1770044805335,0.00080096,2332.5,2331.0,11.85194157]
[1770044805639,0.00080048,2333.6,2332.1,0.00080096]
[1770044805828,0.00080048,2333.6,2332.4,0.00080072]
[1770044806042,0.00080048,2334.3,2332.8,0.00080072]
[1770044806459,12.71336937,2334.3,2332.8,0.00080072]
[1770044806664,12.71256889,2334.2,2332.8,0.00080072]
[1770044806833,13.98390583,2334.1,2332.8,0.00080072]
[1770044807159,12.71256889,2333.9,2332.8,0.00080072]
[1770044807356,12.71336961,2333.6,2332.4,0.00080072]
[1770044807861,12.19317761,2333.1,2331.7,0.0008012]
[1770044808063,0.00080096,2332.9,2331.7,1.07296401]
[1770044808235,0.00080096,2332.9,2331.8,0.53616804]
[1770044809163,0.00080096,2332.9,2331.9,1.07208713]
[1770044809865,0.00080096,2332.9,2331.8,1.07212939]
[1770044810360,11.99003619,2332.5,2331.1,1.18519416]
[1770044810562,11.99003619,2332.5,2331.0,0.00080096]
[1770044810931,0.00080096,2331.8,2330.3,0.00180096]
[1770044811161,0.92023713,2331.7,2330.3,0.00180096]
[1770044811458,0.92023713,2331.6,2330.3,0.00180096]
[1770044811657,0.92023713,2331.5,2330.3,0.00180096]
[1770044811858,0.92023713,2331.4,2330.3,0.00180096]
[1770044812060,0.92023713,2331.3,2330.3,0.00180096]
[1770044812271,0.00080096,2331.8,2330.6,0.899]
[1770044812477,0.00080096,2331.8,2330.3,12.91057857]
[1770044812657,0.91992944,2331.7,2330.6,0.899]
[1770044812974,0.00080096,2331.8,2330.6,0.899]
[1770044813263,0.92004333,2331.7,2330.7,1.07263912]
[1770044813465,0.00080096,2331.8,2330.7,0.62633231]
[1770044813633,0.92004959,2331.7,2330.7,0.62633231]
[1770044813964,0.00080096,2331.8,2331.2,0.001]
[1770044814165,0.00080096,2331.8,2330.6,0.899]
[1770044814166,0.92009605,2331.7,2330.5,0.001]
[1770044814530,0.92009605,2331.7,2331.0,0.001]
[1770044814928,0.92009605,2331.7,2330.5,0.001]
[1770044815555,11.98923499,2331.3,2330.0,0.001]
[1770044815860,0.00080096,2331.1,2330.0,0.001]
[1770044816062,0.92009605,2331.0,2330.0,0.001]
[1770044816947,0.00080096,2331.1,2330.0,0.001]
[1770044817575,0.91993887,2331.0,2330.0,0.001]
[1770044817791,0.00080096,2331.1,2330.0,0.001]
[1770044817959,0.91995031,2331.0,2330.0,0.001]
[1770044818161,11.99003595,2331.1,2330.0,0.001]
[1770044818388,14.10793048,2331.0,2330.0,0.001]
[1770044818574,0.91969189,2330.9,2330.0,0.001]
[1770044819992,11.98923499,2330.7,2329.5,1.07419167]
[1770044820178,2.11861539,2330.6,2329.5,1.07419167]
[1770044820382,0.00080096,2331.1,2329.5,1.07419167]
[1770044820986,11.99003595,2331.1,2329.5,1.07419167]
[1770044821593,11.98923499,2330.8,2329.5,0.001]
[1770044821788,0.91894463,2330.7,2329.5,0.001]
[1770044821981,0.00080096,2331.1,2329.5,0.001]
[1770044822165,0.91877833,2331.0,2329.5,0.001]
[1770044822367,0.91877833,2330.9,2329.5,0.001]
[1770044822692,0.91877833,2330.8,2329.5,0.001]
[1770044822896,0.00080096,2331.1,2329.5,0.001]
[1770044823104,12.90787381,2331.0,2329.5,0.001]
[1770044823287,14.19874129,2330.9,2329.5,0.001]
[1770044823487,11.98923499,2330.6,2329.5,0.001]
[1770044823803,11.98923499,2330.2,2329.2,0.001]
[1770044824100,0.91863882,2330.1,2329.2,0.001]
[1770044824299,0.9,2330.5,2329.2,0.001]
[1770044824470,0.91746516,2330.4,2329.2,0.001]
[1770044824669,0.91746516,2330.3,2329.2,0.001]
[1770044824875,0.9,2330.5,2329.2,0.001]
[1770044825069,12.90676223,2330.4,2329.2,0.001]
[1770044825276,2.29820346,2330.3,2329.2,0.001]
[1770044825583,11.98923499,2330.1,2329.0,0.00180523]
[1770044825774,11.98923499,2329.9,2329.0,0.00180523]
[1770044825975,1.38067622,2330.3,2329.0,0.00180523]
[1770044826197,11.98923499,2330.9,2329.0,0.00180523]
[1770044826374,11.99003595,2331.1,2329.1,0.9]
[1770044826574,11.99003595,2331.1,2329.0,0.00180523]
[1770044826575,11.98923499,2330.9,2329.0,0.00180523]
[1770044826768,11.98923499,2330.6,2329.0,0.90180523]
[1770044826967,0.00080096,2331.1,2329.0,0.90180523]
[1770044826968,11.98923499,2330.4,2329.0,0.00180523]
[1770044827179,1.29053154,2330.3,2329.0,0.00180523]
[1770044827379,1.29053154,2330.3,2329.4,0.001]
[1770044827999,0.00080096,2331.1,2329.4,0.001]
[1770044828363,0.00080096,2331.1,2329.5,0.01712109]
[1770044828564,0.00080096,2331.1,2329.5,12.90877761]
[1770044828889,0.00080096,2331.1,2329.4,0.001]
[1770044828890,12.90457005,2331.0,2329.4,0.001]
[1770044829085,11.98923499,2330.8,2329.4,0.001]
[1770044829288,1.290457,2330.7,2329.4,0.001]
[1770044829686,11.98923499,2330.3,2329.1,0.001]
[1770044829885,11.98923499,2330.2,2329.1,0.001]
[1770044830201,1.290457,2330.7,2329.2,1.97330297]
[1770044830502,0.61863833,2331.0,2329.2,1.97330297]
[1770044830503,11.98923499,2330.9,2329.2,1.07330297]
[1770044830705,11.98923499,2330.5,2329.1,0.001]
[1770044831004,11.98923499,2330.5,2329.1,1.07434845]
[1770044831166,11.98923499,2330.5,2329.2,1.0733098]
[1770044831568,11.98923499,2330.5,2329.1,0.001]
[1770044831791,1.1989235,2330.4,2329.1,0.001]
[1770044831992,13.18815849,2330.4,2329.1,0.001]
[1770044832390,11.98923499,2330.2,2329.1,0.001]
[1770044832702,12.90436646,2330.1,2329.1,0.001]
[1770044832875,0.91513147,2330.0,2329.1,0.001]
[1770044833072,1.1989235,2330.4,2329.1,0.001]
[1770044833274,0.00080096,2331.1,2329.1,15.03917459]
[1770044833500,0.00080096,2331.1,2329.4,12.90877761]
[1770044833674,0.00080096,2331.1,2329.5,13.80877761]
[1770044834181,2.98635439,2333.2,2331.7,0.00080144]
[1770044834386,0.00080072,2333.2,2332.1,0.0008012]
[1770044834586,20.05108699,2333.1,2332.1,0.0008012]
[1770044834878,0.1032012,2332.9,2331.7,0.00080144]
[1770044835100,11.99003643,2332.5,2331.0,0.0008012]
[1770044835491,0.00080144,2332.5,2331.0,1.07330227]
[1770044835678,2.712059,2332.4,2331.0,1.07330227]
[1770044835887,0.27128604,2332.3,2331.1,0.62633066]
[1770044836142,11.99003643,2332.5,2331.0,0.0008012]
[1770044836303,0.91547504,2332.4,2331.0,0.0008012]
[1770044836508,11.99003643,2332.5,2331.0,0.0008012]
[1770044837196,0.91649674,2332.4,2331.0,0.0008012]
[1770044837399,11.99003643,2332.5,2331.0,0.9008012]
[1770044837612,2.11551868,2332.4,2331.1,1.07245506]
[1770044837904,1.19900364,2332.4,2331.1,1.07245506]
[1770044838109,0.91697514,2332.3,2331.1,1.07245506]
[1770044838312,1.19900364,2332.4,2331.1,1.07245506]
[1770044839113,0.00080144,2332.5,2331.1,1.07245506]
[1770044839307,0.91768531,2332.4,2331.1,1.07245506]
[1770044839516,0.00080144,2332.5,2331.1,1.07245506]
[1770044839716,0.77903696,2332.4,2331.1,13.98123267]
[1770044839919,0.00080072,2333.6,2332.1,0.00080144]
[1770044840119,0.00080072,2333.6,2332.4,0.00080096]
[1770044840413,12.08262093,2333.6,2332.4,0.00080096]
[1770044840786,12.08182021,2333.5,2332.4,0.00080096]
[1770044840992,0.00080072,2333.6,2332.4,0.00080096]
[1770044841190,0.00080072,2333.6,2332.5,0.9]
[1770044841390,0.0011,2333.5,2332.5,0.9]
[1770044841821,0.0011,2333.5,2332.4,0.00080096]
[1770044842114,0.0011,2333.5,2332.5,1.07181002]
[1770044842528,0.0011,2333.5,2332.6,0.53599587]
[1770044843221,0.0011,2333.5,2332.4,0.00080096]
[1770044843798,0.0011,2333.5,2332.4,1.07265406]
[1770044844131,12.08182021,2333.3,2332.4,0.00080096]
[1770044845524,12.08182021,2332.9,2331.7,0.00080168]
[1770044845714,12.08182021,2332.7,2331.7,0.00080168]
[1770044845913,18.77502021,2332.6,2331.0,0.0008012]
[1770044846113,0.00080168,2332.5,2331.2,1.0723877]
[1770044846315,0.00080168,2332.5,2331.1,0.899]
[1770044846517,0.00080168,2332.5,2331.4,4.12658584]
[1770044846705,0.00080168,2332.5,2331.5,0.41265858]
[1770044847801,0.00080168,2332.5,2331.6,1.07222508]
[1770044848908,0.02144,2332.4,2331.6,1.07222508]
[1770044849517,0.00080168,2332.5,2331.6,1.07222508]
[1770044850831,0.00080168,2332.5,2331.5,0.41265858]
[1770044851302,12.08262189,2332.5,2331.4,3.05429397]
[1770044852128,0.00080168,2332.5,2331.4,3.05429397]
[1770044852745,0.00080168,2332.5,2331.7,0.001]
[1770044853140,0.00080168,2332.5,2331.4,3.05429397]
[1770044853141,12.08182021,2332.3,2331.4,3.05429397]
[1770044853341,1.99280392,2332.2,2331.4,3.05429397]
[1770044853541,1.99280392,2332.2,2331.0,1.07329167]
[1770044853542,14.07462413,2332.2,2331.0,0.0008012]
[1770044854259,0.00080168,2332.5,2331.0,0.0008012]
[1770044855028,12.08262189,2332.5,2331.0,0.0008012]
[1770044855256,12.08182021,2332.4,2331.0,0.0008012]
[1770044855460,0.00080168,2332.5,2331.0,0.0008012]
[1770044856030,12.08262189,2332.5,2331.0,0.0008012]
[1770044856256,12.08262189,2332.5,2331.0,0.8998012]
[1770044856257,13.2900824,2332.4,2331.0,0.8998012]
[1770044856461,12.08182021,2332.2,2331.0,0.0008012]
[1770044856661,12.08182021,2332.0,2331.0,0.0008012]
[1770044856862,0.91456097,2331.9,2331.0,0.0008012]
[1770044857159,12.08182021,2332.0,2330.5,0.001]
[1770044857160,12.08182021,2331.7,2330.5,0.001]
[1770044857369,5.456851,2331.5,2330.5,0.001]
[1770044857569,12.08182021,2331.5,2330.5,0.001]
[1770044857944,12.08182021,2331.3,2330.3,0.0008012]
[1770044858134,12.99719921,2331.2,2330.3,0.0008012]
[1770044858336,12.08182021,2331.2,2330.3,0.0008012]
[1770044858532,12.08182021,2331.0,2330.1,1.18353717]
[1770044858832,12.08182021,2330.8,2329.4,0.001]
[1770044859033,0.52793698,2330.7,2329.4,0.001]
[1770044859231,0.52793698,2330.7,2329.4,1.07422497]
[1770044859446,0.52793698,2330.7,2329.4,0.001]
[1770044859651,0.52793698,2330.7,2329.4,1.07420399]
[1770044859848,0.52793698,2330.7,2329.5,1.07318641]
[1770044860046,0.0008012,2331.1,2329.4,0.001]
[1770044860366,0.91577018,2331.0,2329.4,0.001]
[1770044860569,0.0008012,2331.1,2329.4,11.75275156]
[1770044862363,0.0008012,2331.1,2329.5,1.07319167]
[1770044862735,0.0008012,2331.1,2329.6,0.9]
[1770044863838,0.0008012,2331.1,2329.6,12.65175156]
[1770044864143,0.0008012,2331.1,2329.8,1.07305348]
[1770044864357,0.0008012,2331.1,2329.9,0.9]
[1770044864936,0.0008012,2331.1,2329.9,0.88668762]
[1770044866268,0.0008012,2331.1,2330.0,1.07296137]
[1770044866765,0.0008012,2331.1,2330.1,0.9]
[1770044867184,0.0008012,2331.8,2330.2,11.75175156]
[1770044867343,0.0008012,2331.8,2330.4,11.75175156]
[1770044867741,0.0008012,2331.8,2330.3,1.2659766]
[1770044867939,0.0008012,2331.8,2330.4,0.9]
[1770044868343,0.0008012,2331.8,2330.5,1.07273117]
[1770044869675,0.0008012,2331.8,2330.6,0.9]
[1770044870183,0.91741314,2331.7,2330.6,0.9]
[1770044870341,0.0008012,2331.8,2330.6,1.97266063]
[1770044870544,0.91747578,2331.7,2330.6,0.9]
[1770044870786,0.91747977,2331.6,2330.6,0.9]
[1770044870993,1.37691951,2331.8,2330.6,1.97265071]
[1770044871158,0.0008012,2331.8,2330.6,1.97265071]
[1770044871559,0.0008012,2331.8,2330.6,14.02395262]
[1770044872271,0.0008012,2331.8,2330.6,1.97265071]
[1770044872869,0.0008012,2331.8,2330.7,0.9]
[1770044873582,0.0008012,2331.8,2330.8,0.9]
[1770044873798,0.0008012,2331.8,2330.4,4.2909714]
[1770044874080,0.0008012,2331.8,2330.6,1.07268262]
[1770044874595,0.0011,2332.3,2330.6,1.07268262]
[1770044874596,0.0011,2332.3,2331.0,0.00080144]
[1770044874880,0.0011,2332.3,2331.1,0.9]
[1770044875044,0.0011,2332.3,2331.1,12.95130191]
[1770044876355,0.0011,2332.3,2331.2,1.07240905]
[1770044876566,0.0011,2332.3,2331.3,1.83133472]
[1770044877562,0.0011,2332.3,2331.4,0.9]
[1770044878276,12.62030911,2332.2,2331.0,0.00080144]
[1770044878477,0.9196774,2332.1,2331.0,0.00080144]
[1770044878775,13.76038192,2332.2,2331.0,0.00080144]
[1770044878776,15.00799244,2332.0,2331.0,0.00080144]
[1770044878965,15.00799244,2332.0,2330.3,0.00080144]
[1770044878966,13.76118336,2331.8,2330.3,0.00080144]
[1770044879169,14.68005932,2331.7,2330.3,0.00080144]
[1770044879355,12.62030911,2331.1,2329.7,0.001]
[1770044879572,13.53998651,2331.0,2329.7,0.9]
[1770044879770,1.14087425,2331.1,2329.5,0.001]
[1770044879771,1.14007281,2330.4,2329.5,0.001]
[1770044879976,0.80127508,2330.3,2329.5,0.001]
[1770044880160,0.9196774,2330.2,2329.5,0.001]
[1770044880360,1.14007281,2330.7,2329.5,0.001]
[1770044880560,12.62030911,2330.7,2329.5,0.001]
[1770044880762,1.14007281,2330.4,2329.1,0.001]
[1770044880962,13.76038192,2330.0,2329.0,0.00180523]
[1770044881215,15.13642011,2329.9,2328.9,0.001]
[1770044881690,1.14007281,2329.7,2328.3,0.90978129]
[1770044881860,2.90504169,2329.9,2328.8,5.19305428]
[1770044881861,1.37603819,2329.9,2328.8,5.19305428]
[1770044882060,1.14007281,2330.1,2328.8,0.899]
[1770044882300,13.76118715,2330.2,2328.8,0.899]
[1770044882506,13.76038192,2330.1,2328.8,0.899]
[1770044882709,0.00080523,2330.2,2328.6,4.29425607]
[1770044882905,0.00080523,2330.2,2328.9,0.9]
[1770044884214,0.00080144,2331.1,2329.1,12.05130191]
[1770044884383,0.00080144,2331.1,2329.3,1.07328381]
[1770044884577,0.00080144,2331.1,2329.3,13.12458572]
[1770044885035,0.00080144,2331.1,2330.0,0.01712109]
[1770044885206,0.00080144,2331.8,2330.3,0.00080168]
[1770044885509,0.00080144,2331.8,2330.4,0.9]
[1770044885810,0.0011,2332.3,2331.0,21.3985893]
[1770044885973,0.0011,2332.3,2331.0,12.05210359]
[1770044886174,0.00190096,2333.2,2331.1,12.068423]
[1770044886383,0.00190096,2333.2,2331.8,0.01712109]
[1770044886579,0.00190096,2333.2,2332.1,0.00080168]
[1770044887016,0.0011,2333.5,2332.2,0.01712109]
[1770044887313,0.0011,2333.5,2332.4,0.0008012]
[1770044888415,0.0011,2333.5,2332.6,1.07176541]
[1770044888580,0.0011,2333.5,2332.6,1.69772824]
[1770044889417,0.0011,2333.5,2332.5,1.07179322]
[1770044889609,0.0011,2333.5,2332.7,0.9]
[1770044890420,0.0011,2334.2,2332.8,1.07247448]
[1770044891029,0.0011,2334.2,2332.9,0.899]
[1770044891595,0.0011,2334.2,2332.9,12.95030191]
[1770044891887,0.0011,2334.2,2333.0,1.40227764]
[1770044892570,0.0011,2334.2,2333.1,1.07153572]
[1770044892739,0.00080048,2334.3,2333.1,1.07153572]
[1770044893250,0.00080048,2334.3,2333.1,13.12283763]
[1770044893392,0.00080048,2335.0,2333.5,0.00080072]
[1770044893590,0.00080048,2335.0,2333.6,0.899]
[1770044893927,0.0011,2334.0,2333.6,0.899]
[1770044894099,0.00080048,2335.0,2333.6,0.899]
[1770044894302,0.38321491,2335.9,2334.0,0.01712109]
[1770044894303,0.0011,2334.2,2334.0,0.01712109]
[1770044894530,12.62111151,2336.2,2334.2,0.00080072]
[1770044894746,1.26211115,2336.1,2334.2,1.7415493]
[1770044895031,0.00080312,2336.9,2335.2,9.32936462]
[1770044895214,0.00080312,2336.9,2335.4,0.00080264]
[1770044895427,0.00080312,2336.9,2335.5,1.30080958]
[1770044895745,0.00190384,2337.7,2336.0,0.1024]
[1770044896028,0.00190384,2337.7,2336.2,9.32936462]
[1770044896228,0.00190384,2337.7,2336.3,12.170823]
[1770044896448,0.0011,2338.2,2337.4,1.06956447]
[1770044896675,0.0011,2338.7,2337.5,0.899]
[1770044896816,0.0011,2338.7,2337.4,1.06956447]